fUSD/lending_fUSD_20250517
["ID","MTS","AMOUNT","RATE_DAILY","PERIOD"]
[361319011,1747464645858,-500.0,0.00019178,2]
[361319012,1747464645867,-500.0,0.00019178,2]
[361319013,1747464645875,-500.0,0.00019178,2]
[361319014,1747464645886,-500.0,0.00019178,2]
[361319015,1747464645897,-500.0,0.00019178,2]
[361319016,1747464645908,-500.0,0.00019178,2]
[361319017,1747464645916,-500.0,0.00019178,2]
[361319018,1747464645926,-500.0,0.00019178,2]
[361319019,1747464645936,-500.0,0.00019178,2]
[361319020,1747464645945,-500.0,0.00019178,2]
[361319021,1747464645955,-500.0,0.00019178,2]
[361319022,1747464645964,-500.0,0.00019178,2]
[361319023,1747464645974,-500.0,0.00019178,2]
[361319024,1747464645983,-500.0,0.00019178,2]
[361319025,1747464645992,-962.97,0.00019178,2]
[361319026,1747464646002,-258.428444,0.00019178,2]
[361319027,1747464646011,-258.428444,0.00019178,2]
[361319028,1747464646021,-258.428444,0.00019178,2]
[361319029,1747464646030,-258.428444,0.00019178,2]
[361319030,1747464646039,-151.0,0.00019178,2]
[361319031,1747464646048,-272.439488,0.00019178,2]
[361319032,1747464646058,-150.0,0.00019178,2]
[361319033,1747464646067,-3272.36,0.00019178,2]
[361319034,1747464646077,-2106.0,0.00019183,2]
[361319035,1747464646086,-154.67924905,0.00019205,2]
[361319036,1747464646096,-330.68,0.00019308,2]
[361319037,1747464646105,-530.07431616,0.00019321,2]
[361319038,1747464646115,-1000.0,0.00019321,2]
[361319039,1747464646124,-10253.79421478,0.0001936,2]
[361319040,1747464646135,-1500.0,0.00019368,2]
[361319041,1747464646144,-150.0,0.00019434,2]
[361319042,1747464646154,-150.0,0.00019434,2]
[361319043,1747464646163,-150.0,0.00019434,2]
[361319044,1747464646172,-150.0,0.00019434,2]
[361319045,1747464646182,-1000.0,0.000195,2]
[361319046,1747464646192,-151.0,0.000195,2]
[361319047,1747464646201,-196.58789486,0.0001956,2]
[361319048,1747464646210,-237.83453714,0.0001956,2]
[361319049,1747464646219,-293.00471612,0.0001959,2]
[361319050,1747464646228,-700.0,0.000196,7]
[361319051,1747464646238,-237.77,0.000196,2]
[361319052,1747464646247,-2976.92032398,0.00019604,2]
[361319053,1747464646256,-3329.71835617,0.0001961,2]
[361319054,1747464646266,-151.0,0.0001961,2]
[361319055,1747464646275,-6997.36117166,0.0001968,2]
[361319056,1747464646284,-209.594108,0.0001968,2]
[361319057,1747464646293,-151.0,0.0001968,2]
[361319058,1747464646302,-150.0,0.00019683,2]
[361319059,1747464646311,-584.08,0.00019688,2]
[361319060,1747464646320,-5000.0,0.00019697,2]
[361319061,1747464646330,-151.0,0.00019697,2]
[361319062,1747464646339,-248.482725,0.00019697,2]
[361319063,1747464646349,-151.0,0.00019697,2]
[361319064,1747464646358,-151.0,0.00019697,2]
[361319066,1747464646367,-166.15931479,0.000197,2]
[361319068,1747464646375,-1400.0,0.000197,7]
[361319070,1747464646384,-235.5687678,0.000197,2]
[361319071,1747464646394,-423.68028252,0.0001978,7]
[361319072,1747464646403,-153.328728,0.0001979,2]
[361319074,1747464646412,-151.0,0.0001979,2]
[361319075,1747464646422,-287.656119,0.0001979,2]
[361319076,1747464646433,-287.656119,0.0001979,2]
[361319077,1747464646442,-178.436228,0.0001979,2]
[361319078,1747464646451,-178.436228,0.0001979,2]
[361319079,1747464646463,-288.483508,0.0001979,2]
[361319080,1747464646472,-288.483508,0.0001979,2]
[361319081,1747464646481,-795.0,0.0001979,2]
[361319082,1747464646493,-243495.64822347,0.00019797,2]
[361319083,1747464646504,-258.428444,0.00019797,2]
[361319084,1747464646513,-258.428444,0.00019797,2]
[361319085,1747464646522,-375.415966,0.00019797,2]
[361319086,1747464646532,-375.415966,0.00019797,2]
[361319087,1747464646541,-198.455552,0.00019797,2]
[361319088,1747464646550,-151.0,0.00019797,2]
[361319089,1747464646560,-151.0,0.00019797,2]
[361319090,1747464646569,-151.0,0.00019797,2]
[361319091,1747464646578,-253.650147,0.00019797,2]
[361319092,1747464646588,-151.0,0.00019797,2]
[361319093,1747464646597,-287.656119,0.00019797,2]
[361319094,1747464646606,-287.656119,0.00019797,2]
[361319095,1747464646615,-178.436228,0.00019797,2]
[361319096,1747464646624,-178.436228,0.00019797,2]
[361319097,1747464646634,-288.483508,0.00019797,2]
[361319098,1747464646643,-288.483508,0.00019797,2]
[361319099,1747464646653,-151.0,0.00019797,2]
[361319100,1747464646662,-152.457525,0.00019797,2]
[361319101,1747464646672,-576.908807,0.00019797,2]
[361319102,1747464646681,-576.908807,0.00019797,2]
[361319103,1747464646690,-151.0,0.00019797,2]
[361319104,1747464646700,-151.0,0.00019797,2]
[361319105,1747464646709,-152.139633,0.00019797,2]
[361319106,1747464646718,-150.0,0.00019799,2]
[361319107,1747464646727,-73130.61225067,0.000198,5]
[361319108,1747464646739,-10300.97381689,0.000198,5]
[361319109,1747464647529,-1148.0,0.0001979,2]
[361319110,1747464647538,-25.89999811,0.000198,5]
[361319111,1747464647582,-41212.80165169,0.000198,5]
[361319112,1747464647635,-42.335642,0.000198,5]
[361319113,1747464647661,-2399.7,0.000198,5]
[361319114,1747464647771,-59.42813289,0.000198,5]
[361319115,1747464715549,5200.65769999,0.000241,30]
[361319116,1747465445830,155.16,0.00025072,120]
[361319117,1747465446117,155.16,0.00027351,120]
[361319118,1747465566109,500.0,0.00023287,30]
[361319119,1747465566333,500.0,0.00023835,35]
[361319120,1747465566516,500.0,0.00024383,40]
[361319121,1747465566900,500.0,0.00024931,45]
[361319122,1747465636092,-245.58,0.00013699,2]
[361319123,1747465636114,-200.0,0.00014899,2]
[361319124,1747465636136,-200.0,0.00015068,2]
[361319125,1747465636159,-1234.240537,0.00016019,2]
[361319126,1747465636180,-200.0,0.000161,2]
[361319127,1747465636201,-206.19656762,0.00016338,2]
[361319128,1747465636223,-496.46,0.00016634,2]
[361319129,1747465636244,-500.4641331,0.00016667,2]
[361319130,1747465636265,-215.74497125,0.00016667,2]
[361319131,1747465636288,-500.0,0.00016675,2]
[361319132,1747465636309,-289.29197058,0.00016675,2]
[361319133,1747465767891,450.0,0.0001,2]
[361319135,1747465831739,-850.89198,0.00016712,2]
[361319136,1747465831974,-329.76386651,0.00016712,2]
[361319238,1747465837852,-900.48983006,0.00016712,2]
[361319239,1747465837864,-779.79811136,0.00016712,2]
[361319240,1747465837975,-6807.46935847,0.00016712,2]
[361319241,1747465837985,-150.0,0.0001679,2]
[361319242,1747465837995,-150.0,0.00016948,2]
[361319243,1747465838005,-628.0,0.00016948,2]
[361319244,1747465838014,-798.0,0.00016948,2]
[361319245,1747465838024,-919.0,0.00016948,2]
[361319246,1747465838033,-553.0,0.00016948,2]
[361319247,1747465838043,-1251.0,0.00016948,2]
[361319248,1747465838053,-584.0,0.00016948,2]
[361319249,1747465838063,-1457.0,0.00016948,2]
[361319250,1747465838074,-2179.582,0.00016972,2]
[361319251,1747465838084,-879.0,0.00016972,2]
[361319252,1747465838093,-500.0,0.00017,2]
[361319253,1747465838103,-500.37503577,0.00017,2]
[361319254,1747465838113,-505.71531887,0.00017223,2]
[361319255,1747465838122,-1000.0,0.00017273,2]
[361319256,1747465838132,-207.4,0.00017273,2]
[361319257,1747465838141,-155.0,0.00017273,2]
[361319258,1747465838151,-151.0,0.00017273,2]
[361319259,1747465838160,-668.65185757,0.00017273,2]
[361319260,1747465838169,-668.65185757,0.00017273,2]
[361319261,1747465838179,-496.06551586,0.00017667,2]
[361319263,1747465838188,-307.64359499,0.00017667,2]
[361319265,1747465838197,-500.28740936,0.00017667,2]
[361319267,1747465838207,-500.0,0.00017667,2]
[361319269,1747465838215,-500.75801493,0.00017667,2]
[361319270,1747465838225,-500.520092,0.00017667,2]
[361319271,1747465838234,-500.35503499,0.00017667,2]
[361319272,1747465838244,-500.51149635,0.00017667,2]
[361319273,1747465838253,-500.0,0.00017667,2]
[361319274,1747465838263,-500.0,0.00017667,2]
[361319275,1747465838272,-500.0,0.00017667,2]
[361319276,1747465838282,-500.0,0.00017667,2]
[361319277,1747465838291,-878.08,0.0001779,2]
[361319278,1747465838301,-1037.0,0.00017821,2]
[361319279,1747465838310,-468.90257942,0.00017821,2]
[361319280,1747465838321,-289.34871158,0.000179,2]
[361319281,1747465838330,-250.0,0.00018069,2]
[361319282,1747465838340,-737.9,0.00018117,2]
[361319283,1747465838349,-1000.0,0.0001817,2]
[361319284,1747465838358,-500.0,0.0001817,2]
[361319285,1747465838368,-589.79,0.00018202,2]
[361319286,1747465838378,-1000.0,0.00018215,2]
[361319287,1747465838387,-155.16,0.00018234,2]
[361319288,1747465838397,-500.0,0.00018256,2]
[361319289,1747465838406,-200.0,0.00018343,2]
[361319290,1747465838416,-1112.369,0.00018369,2]
[361319291,1747465838425,-1000.0,0.00018387,2]
[361319292,1747465838435,-150.0,0.00018513,7]
[361319293,1747465838444,-156.587,0.00018642,2]
[361319294,1747465838454,-357.97172452,0.00018642,2]
[361319295,1747465838463,-151.0,0.00018644,2]
[361319296,1747465838473,-151.0,0.00018657,2]
[361319297,1747465838482,-151.0,0.00018661,2]
[361319298,1747465838492,-151.0,0.00018665,2]
[361319299,1747465838502,-1382.0,0.000187,2]
[361319300,1747465838512,-1500.0,0.00018763,2]
[361319301,1747465838521,-151.0,0.0001878,2]
[361319302,1747465838531,-151.0,0.0001878,2]
[361319303,1747465838541,-496.46,0.00018898,2]
[361319304,1747465838550,-500.0,0.00019176,2]
[361319305,1747465838560,-500.0,0.00019176,2]
[361319306,1747465838570,-500.0,0.00019176,2]
[361319307,1747465838579,-500.0,0.00019176,2]
[361319308,1747465838588,-450.0,0.00019176,2]
[361319309,1747465838597,-500.0,0.00019176,2]
[361319310,1747465838607,-435.7190317,0.00019176,2]
[361319311,1747465838617,-500.0,0.00019178,2]
[361319312,1747465838630,-500.0,0.00019178,2]
[361319313,1747465838640,-643.64782881,0.00019178,2]
[361319314,1747465838649,-770.37,0.00019178,2]
[361319315,1747465838659,-4000.0,0.00019178,2]
[361319316,1747465838668,-150.0,0.00019178,2]
[361319317,1747465838678,-1515.82774616,0.00019311,2]
[361319318,1747465838687,-168.234,0.00019317,2]
[361319319,1747465838697,-668.837,0.00019317,2]
[361319320,1747465838706,-703.37487761,0.00019344,2]
[361319321,1747465838715,-1206.37,0.00019364,2]
[361319322,1747465838725,-1607.46,0.00019364,2]
[361319323,1747465838735,-1149.41911751,0.00019404,2]
[361319324,1747465838744,-1110.94068354,0.00019404,2]
[361319325,1747465838753,-1064.11427905,0.00019404,2]
[361319326,1747465838762,-1047.44678601,0.00019404,2]
[361319327,1747465838772,-1128.5188093,0.00019404,2]
[361319328,1747465838781,-1026.37986361,0.00019404,2]
[361319329,1747465839146,-703.37487762,0.00019588,2]
[361319330,1747465839165,-151.0,0.000196,2]
[361319331,1747465839174,-150.0,0.00019683,2]
[361319332,1747465839183,-57.15824741,0.0001969,2]
[361319335,1747465839941,-500.36914172,0.00016972,2]
[361319336,1747465839953,-647.63085828,0.00016972,2]
[361319337,1747465839962,-112.71175259,0.0001969,2]
[361319338,1747465839972,-164.56507584,0.000197,2]
[361319339,1747465839982,-226.8154,0.000197,2]
[361319340,1747465839992,-271.2790382,0.000197,2]
[361319341,1747465840002,-1100.0,0.000197,7]
[361319342,1747465840012,-620.87901874,0.000197,2]
[361319343,1747465840021,-1970.11885635,0.000197,2]
[361319344,1747465840033,-307.1,0.000197,2]
[361319345,1747465840045,-4032.80311343,0.000197,2]
[361319346,1747465840072,-698.45087464,0.000197,2]
[361319347,1747465840084,-1000.0,0.000197,2]
[361319364,1747465845025,-4499.59706272,0.000197,2]
[361319365,1747465845034,-22669.5681,0.00019703,2]
[361319366,1747465845043,-204.21403813,0.0001971,2]
[361319367,1747465845053,-150.0,0.0001971,2]
[361319368,1747465845062,-150.0,0.00019737,2]
[361319369,1747465845071,-273.29577852,0.00019744,2]
[361319370,1747465845080,-9293.30719441,0.00019758,2]
[361319371,1747465845091,-295.427449,0.00019759,2]
[361319372,1747465845100,-200.0,0.00019765,2]
[361319373,1747465845109,-208.26219589,0.00019773,2]
[361319374,1747465845118,-156.67826427,0.00019773,2]
[361319375,1747465845127,-507.3268511,0.00019773,2]
[361319376,1747465845136,-151.0,0.00019797,2]
[361319377,1747465845146,-239.11516575,0.00019799,2]
[361319378,1747465845155,-396.0898385,0.00019799,2]
[361319379,1747465845164,-22575.15586514,0.00019799,2]
[361319380,1747465845173,-177.21683494,0.00019799,2]
[361319381,1747465845182,-84294.27441005,0.000198,5]
[361319382,1747465845192,-222.246309,0.000198,2]
[361319383,1747465845201,-2200.0,0.000198,7]
[361319384,1747465845210,-5000.0,0.000198,2]
[361319385,1747465845220,-223.44461086,0.000198,2]
[361319386,1747465845229,-199.08804106,0.000198,2]
[361319387,1747465845238,-8286.35585193,0.000198,2]
[361319388,1747465845247,-28237.0114094,0.00019803,2]
[361319389,1747465845256,-260.2082945,0.00019803,2]
[361319390,1747465845266,-49803.6892309,0.00019803,2]
[361319391,1747465845275,-16026.856434,0.00019803,2]
[361319392,1747465845284,-2387.7456831,0.00019803,2]
[361319393,1747465845293,-46234.3096539,0.00019817,2]
[361319394,1747465845302,-234.3,0.00019858,2]
[361319395,1747465845311,-91058.91014379,0.00019858,2]
[361319396,1747465845320,-75993.7996842,0.00019859,2]
[361319397,1747465845329,-151.0,0.00019859,2]
[361319398,1747465845338,-151.0,0.00019859,2]
[361319399,1747465845348,-151.0,0.00019859,2]
[361319400,1747465845357,-151.0,0.00019859,2]
[361319401,1747465845366,-152.223776,0.00019859,2]
[361319402,1747465845375,-151.0,0.00019859,2]
[361319403,1747465845384,-151.0,0.00019859,2]
[361319404,1747465845394,-151.0,0.00019859,2]
[361319405,1747465845403,-158.734942,0.00019859,2]
[361319406,1747465845414,-158.734942,0.00019859,2]
[361319407,1747465845423,-152.170326,0.00019859,2]
[361319408,1747465845434,-3039.88831466,0.0001987,2]
[361319409,1747465845443,-500.0,0.00019873,2]
[361319410,1747465845453,-155.67445281,0.00019873,2]
[361319411,1747465845462,-507.35868551,0.00019873,2]
[361319412,1747465845472,-195221.66039339,0.0001988,2]
[361319413,1747465845484,-9258.53927587,0.0001988,2]
[361319414,1747465845493,-151.0,0.0001988,2]
[361319415,1747465845502,-151.0,0.0001988,2]
[361319416,1747465845511,-214.860993,0.0001988,2]
[361319417,1747465845520,-214.860993,0.0001988,2]
[361319418,1747465845529,-151.0,0.0001988,2]
[361319419,1747465845539,-153.586143,0.0001988,2]
[361319420,1747465845548,-239.72,0.0001988,2]
[361319421,1747465845557,-151.279482,0.0001988,2]
[361319423,1747465845566,-151.0,0.0001988,2]
[361319425,1747465845575,-151.0,0.0001988,2]
[361319427,1747465845584,-151.583167,0.0001988,2]
[361319429,1747465845594,-151.0,0.0001988,2]
[361319431,1747465845603,-152.4486,0.0001988,2]
[361319433,1747465845612,-156.87072,0.0001988,2]
[361319435,1747465845621,-180.899911,0.0001988,2]
[361319437,1747465845631,-151.59446,0.0001988,2]
[361319440,1747465845640,-180.899911,0.0001988,2]
[361319443,1747465845649,-151.0,0.0001988,2]
[361319445,1747465845663,-151.0,0.0001988,2]
[361319447,1747465845672,-151.230817,0.0001988,2]
[361319449,1747465845681,-151.0,0.0001988,2]
[361319451,1747465845691,-305.068088,0.0001988,2]
[361319453,1747465845700,-305.068088,0.0001988,2]
[361319455,1747465845710,-223.916223,0.0001988,2]
[361319457,1747465845720,-151.0,0.0001988,2]
[361319459,1747465845730,-554.95927,0.0001988,2]
[361319461,1747465845740,-151.0,0.0001988,2]
[361319463,1747465845750,-151.0,0.0001988,2]
[361319465,1747465845760,-151.0,0.0001988,2]
[361319467,1747465845770,-152.651713,0.0001988,2]
[361319469,1747465845779,-280.260479,0.0001988,2]
[361319471,1747465845788,-151.213998,0.0001988,2]
[361319473,1747465845798,-176.505184,0.0001988,2]
[361319475,1747465845808,-151.0,0.0001988,2]
[361319477,1747465845817,-151.0,0.0001988,2]
[361319479,1747465845827,-152.287236,0.0001988,2]
[361319481,1747465845836,-151.0,0.0001988,2]
[361319483,1747465845846,-153.390238,0.0001988,2]
[361319485,1747465845855,-158.734942,0.0001988,2]
[361319487,1747465845865,-158.734942,0.0001988,2]
[361319489,1747465845875,-759.936883,0.0001988,2]
[361319491,1747465845884,-759.936883,0.0001988,2]
[361319493,1747465845894,-151.0,0.0001988,2]
[361319495,1747465845903,-151.0,0.0001988,2]
[361319497,1747465845912,-260.541984,0.0001988,2]
[361319499,1747465845922,-10971.35628006,0.00019889,2]
[361319501,1747465845931,-180.1132757,0.000199,2]
[361319503,1747465845940,-21779.10202512,0.000199,2]
[361319505,1747465845950,-4756.8528693,0.000199,3]
[361319507,1747465845959,-82752.85819778,0.000199,2]
[361319526,1747465846920,-788.5447315,0.000199,2]
[361319527,1747465846992,-2498.02341,0.000199,2]
[361319528,1747465847018,-2715.3,0.000199,2]
[361319529,1747465847121,-2916.12772199,0.000199,2]
[361319530,1747465847174,-360.35999985,0.000199,2]
[361319531,1747465853755,216.88299574,0.00026137,120]
[361319533,1747465997230,528.095686,0.0002628,120]
[361319574,1747466200376,155.4,0.00021945,30]
[361319609,1747466433929,1000.0,0.00027,120]
[361319646,1747466831849,2800.0,0.000137,5]
[361319647,1747466833948,3700.0,0.000138,5]
[361319648,1747466836805,4600.0,0.000139,5]
[361319649,1747466838175,-468.55429306,0.000135,4]
[361319653,1747466850110,-431.44570694,0.000135,4]
[361319655,1747466850138,-1800.0,0.000136,4]
[361319656,1747466850160,-246.91,0.00013699,2]
[361319657,1747466850183,-500.0,0.00013973,2]
[361319658,1747466850207,-125.06011862,0.00013973,2]
[361319722,1747466949095,-170.7393119,0.000138,2]
[361319723,1747466949116,-13033.86947607,0.000139,2]
[361319724,1747466949139,-9600.27926741,0.000139,2]
[361319725,1747466949160,-500.520092,0.00013973,2]
[361319726,1747466949182,-500.75801493,0.00013973,2]
[361319727,1747466949204,-500.28740936,0.00013973,2]
[361319728,1747466949226,-500.35503499,0.00013973,2]
[361319729,1747466949247,-307.64359499,0.00013973,2]
[361319730,1747466949268,-500.0,0.00013973,2]
[361319731,1747466949289,-374.93988138,0.00013973,2]
[361319732,1747466949310,-496.06551586,0.00013973,2]
[361319733,1747466949796,-210.92991429,0.00013973,2]
[361319734,1747466949817,-241.86753883,0.00013984,2]
[361319735,1747466949837,-150.0,0.00013998,2]
[361319736,1747466949858,-300.0,0.00013999,2]
[361319737,1747466949877,-193.22268157,0.00013999,2]
[361319738,1747466949899,-6041.001521,0.00013999,2]
[361319739,1747466949918,-500.0,0.00013999,2]
[361319740,1747466949948,-500.0,0.00013999,2]
[361319741,1747466949969,-500.0,0.00013999,2]
[361319742,1747466949992,-500.0,0.00013999,2]
[361319743,1747466950012,-500.0,0.00013999,2]
[361319744,1747466950039,-450.0,0.00013999,2]
[361319745,1747466950059,-435.7190317,0.00013999,2]
[361319746,1747466950080,-269.98777884,0.00014,2]
[361319747,1747466950104,-10946.57317488,0.00014,2]
[361319748,1747466951216,-433573.952,0.00014,2]
[361319749,1747466951249,-6480.87343669,0.00014,2]
[361319750,1747466957190,-25249.56059385,0.00014,2]
[361319751,1747466957214,-71003.4066212,0.00014,2]
[361319752,1747466960115,-31349.03211906,0.00014,2]
[361319754,1747466963100,-58485.01526,0.0001399,2]
[361319755,1747466968293,-41514.98474,0.0001399,2]
[361319756,1747466968316,-261589.34266,0.00014,2]
[361319773,1747467032191,-865.68662936,0.000139,2]
[361319774,1747467032200,-41.15845097,0.00013973,2]
[361319799,1747467037913,-464.5568679,0.00013973,2]
[361319800,1747467037922,-500.0,0.00013973,2]
[361319801,1747467037931,-500.0,0.00013973,2]
[361319802,1747467037940,-500.51149635,0.00013973,2]
[361319803,1747467037949,-650.720287,0.0001399,2]
[361319804,1747467037958,-650.720287,0.0001399,2]
[361319805,1747467037968,-300.0,0.00013998,2]
[361319806,1747467037977,-300.0,0.00013999,2]
[361319807,1747467037986,-150.0,0.00013999,2]
[361319808,1747467037996,-1200.0,0.00013999,2]
[361319809,1747467038005,-269.98777884,0.00014,2]
[361319810,1747467038014,-115973.30271696,0.00014,2]
[361319811,1747467038092,-508.2,0.00014,2]
[361319812,1747467038108,-432.80931477,0.00014,2]
[361319825,1747467040262,-1037.6,0.00014,2]
[361319826,1747467040278,-2200.0,0.00014,2]
[361319827,1747467040376,-48938.45325925,0.00014,2]
[361319828,1747467040388,-34495.9141125,0.00014,2]
[361319836,1747467044215,-34539.20019923,0.00014,2]
[361319837,1747467044229,-1568604.66819677,0.00014,2]
[361319838,1747467044241,-1569450.95787287,0.00014,2]
[361319839,1747467044547,1134.61312897,0.00025,30]
[361319840,1747467044705,-1787.39648783,0.00014,2]
[361319855,1747467046630,-2187.45809612,0.00014,2]
[361319856,1747467046658,-614.06943628,0.00014,2]
[361319857,1747467086915,-167.48367352,0.000139,2]
[361319858,1747467086938,-235.21279658,0.000139,2]
[361319859,1747467086962,-23597.3035299,0.00014,2]
[361319891,1747467501497,50000.0,0.00025,30]
[361319893,1747467510639,2014.79,0.00012,2]
[361319894,1747467511215,155.04,0.00021945,30]
[361319896,1747467532206,50000.0,0.00025,30]
[361319897,1747467570163,450.0,0.0001,2]
[361319898,1747467571909,500.0,0.00012,2]
[361319899,1747467593750,50000.0,0.00025,30]
[361319900,1747467612537,50000.0,0.00025,30]
[361319901,1747467638157,50000.0,0.00025,30]
[361319902,1747467657573,50000.0,0.00025,30]
[361319903,1747467671708,50000.0,0.00025,30]
[361319904,1747467685070,50000.0,0.00025,30]
[361319908,1747467713448,50000.0,0.00025,30]
[361319911,1747467737766,21683.34660969,0.00025,30]
[361319918,1747467935112,-634.82293,0.00012838,2]
[361319919,1747467935134,-1200.0,0.00012903,2]
[361319920,1747467935156,-300.0,0.00012903,2]
[361319921,1747467935177,-96.06173581,0.00012904,2]
[361319923,1747468047665,-200.0,0.00012901,2]
[361319924,1747468047686,-150.0,0.00012903,2]
[361319925,1747468047706,-19206.07704605,0.00012904,2]
[361319926,1747468052084,-576.06297183,0.00012904,2]
[361319927,1747468052143,-764.31254247,0.00012904,2]
[361319928,1747468056467,300.0,0.000139,5]
[361319933,1747468154244,-8196.857886,0.00012904,2]
[361319934,1747468155373,-1787.32784259,0.00012904,2]
[361319935,1747468159087,-882.47997525,0.00012904,2]
[361319936,1747468159108,-200.0,0.00012904,2]
[361319937,1747468159129,-166.76,0.00012904,2]
[361319938,1747468159150,-250.0,0.00012904,2]
[361319939,1747468159171,-1852.42,0.00012907,2]
[361319940,1747468159193,-1000.0,0.00012909,2]
[361319941,1747468159213,-2250.54,0.00012926,2]
[361319942,1747468159234,-589.79,0.00012926,2]
[361319943,1747468159255,-200.0,0.00012927,2]
[361319944,1747468159276,-695.88,0.00012992,2]
[361319945,1747468159295,-1001.55,0.00013012,2]
[361319946,1747468159315,-234.56,0.00013699,2]
[361319947,1747468159335,-431.90963436,0.000138,2]
[361319948,1747468159356,-276.96,0.00013853,2]
[361319949,1747468159377,-276.96,0.00013856,2]
[361319950,1747468159398,-276.96,0.0001386,2]
[361319951,1747468159419,-276.96,0.00013863,2]
[361319952,1747468159442,-276.96,0.00013867,2]
[361319953,1747468159463,-276.96,0.00013871,2]
[361319954,1747468159485,-276.96,0.00013874,2]
[361319955,1747468159507,-276.96,0.00013878,2]
[361319956,1747468159527,-276.96,0.00013882,2]
[361319957,1747468159547,-276.96,0.00013885,2]
[361319958,1747468159567,-276.96,0.00013889,2]
[361319959,1747468159587,-276.96,0.00013893,2]
[361319960,1747468159608,-276.96,0.00013896,2]
[361319961,1747468159632,-589.1949375,0.00013898,2]
[361319962,1747468159653,-215.07989241,0.00013898,2]
[361319963,1747468159677,-374.76738256,0.00013898,2]
[361319964,1747468161359,-214.42755494,0.00013898,2]
[361319965,1747468161383,-589.1949375,0.00013898,2]
[361319966,1747468161407,-589.1949375,0.00013898,2]
[361319967,1747468161430,-589.1949375,0.00013898,2]
[361319968,1747468161456,-589.1949375,0.00013898,2]
[361319969,1747468161481,-589.1949375,0.00013898,2]
[361319970,1747468161504,-589.1949375,0.00013898,2]
[361319971,1747468161528,-589.1949375,0.00013898,2]
[361319972,1747468161551,-589.1949375,0.00013898,2]
[361319973,1747468161574,-385.07500706,0.00013898,2]
[361319978,1747468166131,-204.11993044,0.00013898,2]
[361319979,1747468166158,-34.35743089,0.00013898,2]
[361319991,1747468233261,-214.08,0.00013302,2]
[361319992,1747468233270,-670.81,0.00013433,2]
[361319993,1747468233280,-200.0,0.00013459,2]
[361319994,1747468233289,-1378.81307989,0.00013485,2]
[361319995,1747468233380,-616.45,0.00013485,2]
[361319996,1747468233391,-2004.73692011,0.00013485,2]
[361319997,1747468233401,-788.04129065,0.0001371,2]
[361319998,1747468233410,-1200.0,0.00013897,2]
[361319999,1747468233419,-300.0,0.00013897,2]
[361320000,1747468233428,-300.0,0.00013897,2]
[361320001,1747468233437,-500.0,0.00013897,2]
[361320002,1747468233446,-500.0,0.00013897,2]
[361320003,1747468233455,-500.0,0.00013897,2]
[361320004,1747468233465,-500.0,0.00013897,2]
[361320005,1747468233474,-500.0,0.00013897,2]
[361320006,1747468233483,-500.0,0.00013897,2]
[361320007,1747468233493,-500.0,0.00013897,2]
[361320008,1747468233504,-500.0,0.00013897,2]
[361320009,1747468233513,-500.0,0.00013897,2]
[361320010,1747468233523,-150.0,0.00013899,2]
[361320011,1747468233532,-276.96,0.000139,2]
[361320012,1747468233542,-8704.84642214,0.000139,2]
[361320013,1747468238012,-500.0,0.00013897,2]
[361320014,1747468238023,-500.0,0.00013897,2]
[361320015,1747468238034,-500.0,0.00013897,2]
[361320016,1747468238044,-500.0,0.00013897,2]